lending/lending_fUSD_20240621
["ID","MTS","AMOUNT","RATE_DAILY","PERIOD"]
[330038269,1718956763556,-500.0,0.00044109,120]
[330038270,1718956763591,-2083.15,0.00044109,120]
[330038271,1718956763626,-500.0,0.00044109,120]
[330038272,1718956763662,-500.0,0.00044109,120]
[330038273,1718956763698,-500.0,0.00044109,120]
[330038274,1718956763733,-568.87,0.00044109,120]
[330038275,1718956763767,-913.33,0.00044109,120]
[330038276,1718956763802,-542.93,0.00044109,120]
[330038277,1718956763836,-904.22,0.00044109,120]
[330038278,1718956764083,-1725.1,0.00044109,120]
[330038279,1718956764127,-500.0,0.00044109,120]
[330038280,1718956764164,-500.0,0.00044109,120]
[330038281,1718956764199,-1266.6,0.00044109,120]
[330038282,1718956764233,-679.53,0.00044109,120]
[330038283,1718956764270,-1634.34,0.00044109,120]
[330038284,1718956764304,-500.0,0.00044109,120]
[330038285,1718956764338,-1195.59,0.00044109,120]
[330038286,1718956764373,-1276.61,0.00044109,120]
[330038287,1718956764406,-542.12,0.00044109,120]
[330038288,1718956764439,-500.0,0.00044109,120]
[330038289,1718956764475,-500.0,0.00044109,120]
[330038290,1718956764510,-355.59678919,0.00044109,120]
[330038291,1718956764545,-500.0,0.00044109,120]
[330038292,1718956764581,-648.64,0.00044109,120]
[330038293,1718956764616,-583.6,0.00044109,120]
[330038294,1718956764652,-524.1,0.00044109,120]
[330038295,1718956764686,-1891.87,0.00044109,120]
[330038296,1718956764720,-869.31,0.00044109,120]
[330038297,1718956764754,-296.41949445,0.00044109,120]
[330038298,1718956764790,-979.44,0.00044109,120]
[330038299,1718956764825,-2188.81,0.00044109,120]
[330038300,1718956764860,-500.0,0.00044109,120]
[330038301,1718956764900,-642.81,0.00044109,120]
[330038302,1718956764936,-500.0,0.00044109,120]
[330038303,1718956764972,-500.0,0.00044109,120]
[330038304,1718956765017,-1990.64,0.00044109,120]
[330038305,1718956765057,-500.0,0.00044109,120]
[330038306,1718956765094,-500.0,0.00044109,120]
[330038307,1718956765131,-500.0,0.00044109,120]
[330038308,1718956765169,-618.15,0.00044109,120]
[330038309,1718956765208,-1644.48,0.00044109,120]
[330038310,1718956765246,-500.0,0.00044109,120]
[330038311,1718956765287,-1081.88,0.00044109,120]
[330038312,1718956765331,-500.0,0.00044109,120]
[330038313,1718956765374,-500.0,0.00044109,120]
[330038314,1718956765412,-1130.5,0.00044109,120]
[330038315,1718956765452,-168.23149369,0.00044109,120]
[330038316,1718956765492,-2370.45,0.00044109,120]
[330038317,1718956765531,-862.92,0.00044109,120]
[330038318,1718956765569,-500.0,0.00044109,120]
[330038319,1718956765607,-912.28,0.00044109,120]
[330038320,1718956765651,-855.26,0.00044109,120]
[330038321,1718956765694,-500.0,0.00044109,120]
[330038322,1718956765734,-947.23,0.00044109,120]
[330038323,1718956765771,-774.42,0.00044109,120]
[330038324,1718956765809,-1081.69,0.00044109,120]
[330038325,1718956765846,-1073.21,0.00044109,120]
[330038326,1718956765882,-500.0,0.00044109,120]
[330038327,1718956765919,-500.0,0.00044109,120]
[330038328,1718956765957,-1329.19,0.00044109,120]
[330038329,1718956765991,-627.26,0.00044109,120]
[330038330,1718956766030,-500.0,0.00044109,120]
[330038331,1718956766068,-500.0,0.00044109,120]
[330038332,1718956766106,-500.0,0.00044109,120]
[330038333,1718956766147,-1066.12,0.00044109,120]
[330038334,1718956766185,-774.59,0.00044109,120]
[330038335,1718956766224,-500.0,0.00044109,120]
[330038336,1718956766261,-500.0,0.00044109,120]
[330038337,1718956766296,-500.0,0.00044109,120]
[330038338,1718956766334,-159.7106054,0.00044109,120]
[330038339,1718956766371,-500.0,0.00044109,120]
[330038340,1718956766406,-885.68,0.00044109,120]
[330038341,1718956766440,-500.0,0.00044109,120]
[330038342,1718956766475,-604.24936223,0.00044109,120]
[330038343,1718956766511,-500.0,0.00044109,120]
[330038344,1718956766546,-838.21,0.00044109,120]
[330038345,1718956766580,-500.0,0.00044109,120]
[330038346,1718956766617,-1218.16,0.00044109,120]
[330038347,1718956766654,-500.0,0.00044109,120]
[330038348,1718956766690,-950.19,0.00044109,120]
[330038349,1718956766726,-697.69,0.00044109,120]
[330038350,1718956766771,-500.0,0.00044109,120]
[330038351,1718956766813,-500.0,0.00044109,120]
[330038352,1718956766853,-500.0,0.00044109,120]
[330038353,1718956766893,-500.0,0.00044109,120]
[330038354,1718956766936,-985.84,0.00044109,120]
[330038355,1718956766975,-250.0,0.00044109,120]
[330038356,1718956767015,-500.0,0.00044109,120]
[330038357,1718956767054,-1888.63,0.00044109,120]
[330038358,1718956767093,-710.95,0.00044109,120]
[330038359,1718956767132,-500.0,0.00044109,120]
[330038360,1718956767173,-707.0,0.00044109,120]
[330038361,1718956767212,-3042.3,0.00044109,120]
[330038362,1718956767252,-500.0,0.00044109,120]
[330038363,1718956767291,-725.5,0.00044109,120]
[330038364,1718956767331,-967.38,0.00044109,120]
[330038365,1718956767369,-781.3,0.00044109,120]
[330038366,1718956767410,-500.0,0.00044109,120]
[330038367,1718956767450,-626.45,0.00044109,120]
[330038368,1718956767956,-572.6,0.00044109,120]
[330038369,1718956767996,-1748.28,0.00044109,120]
[330038370,1718956768033,-500.0,0.00044109,120]
[330038371,1718956768072,-500.0,0.00044109,120]
[330038372,1718956768108,-931.79,0.00044109,120]
[330038373,1718956768147,-866.81,0.00044109,120]
[330038374,1718956768184,-520.05,0.00044109,120]
[330038375,1718956768220,-1315.17,0.00044109,120]
[330038376,1718956768260,-1759.65,0.00044109,120]
[330038377,1718956768297,-500.0,0.00044109,120]
[330038378,1718956768334,-864.34,0.00044109,120]
[330038379,1718956768368,-288.06017294,0.00044109,120]
[330038380,1718956768402,-1968.37,0.00044109,120]
[330038381,1718956768436,-572.29,0.00044109,120]
[330038382,1718956768471,-1120.37,0.00044109,120]
[330038383,1718956768507,-514.17,0.00044109,120]
[330038384,1718956768542,-500.0,0.00044109,120]
[330038385,1718956768578,-705.81,0.00044109,120]
[330038386,1718956768611,-500.0,0.00044109,120]
[330038387,1718956768644,-500.0,0.00044109,120]
[330038388,1718956768679,-500.0,0.00044109,120]
[330038389,1718956768716,-1558.75,0.00044109,120]
[330038390,1718956768751,-625.32,0.00044109,120]
[330038391,1718956768785,-3050.92,0.00044109,120]
[330038392,1718956768819,-500.0,0.00044109,120]
[330038393,1718956768852,-1747.68,0.00044109,120]
[330038394,1718956768888,-2360.82,0.00044109,120]
[330038395,1718956768925,-500.0,0.00044109,120]
[330038396,1718956768962,-500.0,0.00044109,120]
[330038397,1718956768998,-1620.74,0.00044109,120]
[330038398,1718956769035,-500.0,0.00044109,120]
[330038399,1718956769069,-2733.95,0.00044109,120]
[330038400,1718956769105,-500.0,0.00044109,120]
[330038401,1718956769140,-770.73,0.00044109,120]
[330038402,1718956769176,-500.0,0.00044109,120]
[330038403,1718956769210,-1051.1,0.00044109,120]
[330038404,1718956769248,-500.0,0.00044109,120]
[330038405,1718956769284,-500.0,0.00044109,120]
[330038406,1718956769320,-500.0,0.00044109,120]
[330038407,1718956769355,-970.33,0.00044109,120]
[330038408,1718956769390,-617.18,0.00044109,120]
[330038409,1718956769428,-500.0,0.00044109,120]
[330038410,1718956769464,-1588.68,0.00044109,120]
[330038411,1718956769502,-1509.47,0.00044109,120]
[330038412,1718956769537,-500.0,0.00044109,120]
[330038413,1718956769573,-500.0,0.00044109,120]
[330038414,1718956769611,-664.31,0.00044109,120]
[330038415,1718956769652,-500.0,0.00044109,120]
[330038416,1718956769692,-500.0,0.00044109,120]
[330038417,1718956769728,-688.95,0.00044109,120]
[330038418,1718956769764,-1441.36,0.00044109,120]
[330038419,1718956769800,-1460.58,0.00044109,120]
[330038420,1718956769836,-500.0,0.00044109,120]
[330038421,1718956769874,-1346.01,0.00044109,120]
[330038422,1718956769911,-500.0,0.00044109,120]
[330038423,1718956769947,-500.0,0.00044109,120]
[330038424,1718956769982,-500.0,0.00044109,120]
[330038425,1718956770016,-500.0,0.00044109,120]
[330038426,1718956770052,-525.69,0.00044109,120]
[330038427,1718956770087,-2111.76,0.00044109,120]
[330038428,1718956770123,-726.65,0.00044109,120]
[330038429,1718956770164,-839.74,0.00044109,120]
[330038430,1718956770200,-500.0,0.00044109,120]
[330038431,1718956770236,-500.0,0.00044109,120]
[330038432,1718956770273,-1296.32,0.00044109,120]
[330038433,1718956770310,-2023.83,0.00044109,120]
[330038434,1718956770346,-964.89,0.00044109,120]
[330038435,1718956770382,-500.0,0.00044109,120]
[330038436,1718956770418,-500.0,0.00044109,120]
[330038437,1718956770452,-500.0,0.00044109,120]
[330038438,1718956770488,-558.32,0.00044109,120]
[330038439,1718956770596,-692.7,0.00044109,120]
[330038440,1718956770632,-1466.59,0.00044109,120]
[330038441,1718956770668,-995.34,0.00044109,120]
[330038442,1718956770703,-1769.9,0.00044109,120]
[330038443,1718956770739,-500.0,0.00044109,120]
[330038444,1718956770775,-1640.68,0.00044109,120]
[330038445,1718956770809,-500.0,0.00044109,120]
[330038446,1718956770843,-500.0,0.00044109,120]
[330038447,1718956770883,-500.0,0.00044109,120]
[330038448,1718956770916,-2592.71,0.00044109,120]
[330038449,1718956770951,-523.15,0.00044109,120]
[330038450,1718956770987,-557.96,0.00044109,120]
[330038451,1718956771021,-1316.85,0.00044109,120]
[330038452,1718956771054,-500.0,0.00044109,120]
[330038453,1718956771088,-1287.84,0.00044109,120]
[330038454,1718956771120,-2058.4,0.00044109,120]
[330038455,1718956771154,-500.0,0.00044109,120]
[330038456,1718956771188,-689.75,0.00044109,120]
[330038457,1718956771223,-500.0,0.00044109,120]
[330038458,1718956771256,-187.43811287,0.00044109,120]
[330038459,1718956771291,-682.56,0.00044109,120]
[330038460,1718956771324,-1435.98,0.00044109,120]
[330038461,1718956771356,-1044.29,0.00044109,120]
[330038462,1718956771389,-1609.7,0.00044109,120]
[330038463,1718956771423,-1129.79,0.00044109,120]
[330038464,1718956771454,-500.0,0.00044109,120]
[330038465,1718956771487,-1100.01,0.00044109,120]
[330038466,1718956771519,-657.7,0.00044109,120]
[330038467,1718956771550,-1090.44,0.00044109,120]
[330038468,1718956771583,-548.63,0.00044109,120]
[330038469,1718956771614,-723.87,0.00044109,120]
[330038470,1718956771646,-500.0,0.00044109,120]
[330038471,1718956771679,-1418.84,0.00044109,120]
[330038472,1718956771710,-286.59189512,0.00044109,120]
[330038473,1718956771742,-480.8454177,0.00044109,120]
[330038474,1718956771775,-964.53,0.00044109,120]
[330038475,1718956771808,-925.44,0.00044109,120]
[330038476,1718956771843,-1219.64,0.00044109,120]
[330038477,1718956771879,-503.07,0.00044109,120]
[330038478,1718956771913,-935.33,0.00044109,120]
[330038479,1718956771948,-519.15,0.00044109,120]
[330038480,1718956771982,-495.41939745,0.00044109,120]
[330038481,1718956772018,-2270.49,0.00044109,120]
[330038482,1718956772054,-500.0,0.00044109,120]
[330038483,1718956772088,-318.56263478,0.00044109,120]
[330038484,1718956772131,-870.03,0.00044109,120]
[330038485,1718956772167,-548.39,0.00044109,120]
[330038486,1718956772201,-500.0,0.00044109,120]
[330038487,1718956772236,-771.08,0.00044109,120]
[330038488,1718956772272,-500.0,0.00044109,120]
[330038489,1718956772306,-500.0,0.00044109,120]
[330038490,1718956772340,-500.0,0.00044109,120]
[330038491,1718956772374,-500.0,0.00044109,120]
[330038492,1718956772408,-526.54,0.00044109,120]
[330038493,1718956772444,-500.0,0.00044109,120]
[330038494,1718956772480,-500.0,0.00044109,120]
[330038495,1718956772513,-1852.58,0.00044109,120]
[330038496,1718956772546,-981.43,0.00044109,120]
[330038497,1718956772579,-803.22,0.00044109,120]
[330038498,1718956772611,-670.74,0.00044109,120]
[330038499,1718956772644,-500.0,0.00044109,120]
[330038500,1718956772682,-2094.09,0.00044109,120]
[330038501,1718956772720,-2411.64,0.00044109,120]
[330038502,1718956772757,-787.77,0.00044109,120]
[330038503,1718956772793,-625.32,0.00044109,120]
[330038504,1718956772827,-1266.16,0.00044109,120]
[330038505,1718956772860,-500.0,0.00044109,120]
[330038506,1718956772894,-500.0,0.00044109,120]
[330038507,1718956772935,-2772.43,0.00044109,120]
[330038508,1718956772970,-612.67980735,0.00044109,120]
[330038509,1718956773005,-500.0,0.00044109,120]
[330038511,1718956773039,-1109.59,0.00044109,120]
[330038512,1718956773073,-1313.17,0.00044109,120]
[330038513,1718956773105,-500.0,0.00044109,120]
[330038514,1718956773139,-500.0,0.00044109,120]
[330038515,1718956773175,-523.74,0.00044109,120]
[330038516,1718956773209,-521.03,0.00044109,120]
[330038517,1718956773245,-500.0,0.00044109,120]
[330038518,1718956773280,-500.0,0.00044109,120]
[330038519,1718956773314,-851.12,0.00044109,120]
[330038520,1718956773348,-716.39,0.00044109,120]
[330038521,1718956773382,-704.67,0.00044109,120]
[330038522,1718956773416,-500.0,0.00044109,120]
[330038523,1718956773450,-500.0,0.00044109,120]
[330038524,1718956773485,-565.47,0.00044109,120]
[330038525,1718956773519,-500.0,0.00044109,120]
[330038526,1718956773553,-650.36,0.00044109,120]
[330038527,1718956773588,-500.0,0.00044109,120]
[330038528,1718956773622,-1835.83,0.00044109,120]
[330038529,1718956773656,-500.0,0.00044109,120]
[330038530,1718956773689,-1258.37,0.00044109,120]
[330038531,1718956773723,-500.0,0.00044109,120]
[330038532,1718956773756,-3398.89,0.00044109,120]
[330038533,1718956773788,-596.32,0.00044109,120]
[330038534,1718956773822,-755.86,0.00044109,120]
[330038535,1718956773857,-711.69,0.00044109,120]
[330038536,1718956773894,-500.0,0.00044109,120]
[330038537,1718956773938,-500.0,0.00044109,120]
[330038538,1718956773978,-500.75,0.00044109,120]
[330038539,1718956774014,-500.0,0.00044109,120]
[330038540,1718956774049,-500.0,0.00044109,120]
[330038541,1718956774084,-500.29,0.00044109,120]
[330038542,1718956774120,-5938.09,0.00044109,120]
[330038543,1718956774156,-1989.29,0.00044109,120]
[330038544,1718956774191,-772.45,0.00044109,120]
[330038545,1718956774348,-580.69,0.00044109,120]
[330038546,1718956774386,-500.0,0.00044109,120]
[330038547,1718956774423,-628.56005969,0.00044109,120]
[330038548,1718956774461,-796.56,0.00044109,120]
[330038549,1718956774497,-569.37,0.00044109,120]
[330038550,1718956774534,-1290.44,0.00044109,120]
[330038551,1718956774573,-500.0,0.00044109,120]
[330038552,1718956774610,-500.0,0.00044109,120]
[330038553,1718956774646,-500.0,0.00044109,120]
[330038554,1718956774685,-19890.01,0.00044109,120]
[330038555,1718956774722,-1802.42,0.00044109,120]
[330038556,1718956774759,-1199.39,0.00044109,120]
[330038557,1718956774795,-1095.41,0.00044109,120]
[330038558,1718956774832,-500.0,0.00044109,120]
[330038559,1718956774870,-909.98,0.00044109,120]
[330038560,1718956774907,-500.0,0.00044109,120]
[330038561,1718956774945,-726.97,0.00044109,120]
[330038562,1718956774981,-1482.72,0.00044109,120]
[330038563,1718956775023,-500.0,0.00044109,120]
[330038564,1718956775059,-1088.54,0.00044109,120]
[330038565,1718956775094,-1792.94,0.00044109,120]
[330038566,1718956775130,-500.0,0.00044109,120]
[330038567,1718956775167,-500.0,0.00044109,120]
[330038568,1718956775202,-567.41,0.00044109,120]
[330038569,1718956775237,-500.0,0.00044109,120]
[330038570,1718956775271,-500.0,0.00044109,120]
[330038571,1718956775307,-500.0,0.00044109,120]
[330038572,1718956775343,-875.06,0.00044109,120]
[330038573,1718956775379,-9972.12,0.00044109,120]
[330038574,1718956775413,-950.18,0.00044109,120]
[330038575,1718956775451,-521.14,0.00044109,120]
[330038576,1718956775486,-500.0,0.00044109,120]
[330038577,1718956775523,-641.38,0.00044109,120]
[330038578,1718956775556,-1935.68,0.00044109,120]
[330038579,1718956775591,-500.0,0.00044109,120]
[330038580,1718956775624,-500.0,0.00044109,120]
[330038581,1718956775659,-2334.13,0.00044109,120]
[330038582,1718956775694,-4482.79,0.00044109,120]
[330038583,1718956775730,-500.0,0.00044109,120]
[330038584,1718956775765,-2197.87,0.00044109,120]
[330038585,1718956775799,-4122.53,0.00044109,120]
[330038586,1718956775833,-500.0,0.00044109,120]
[330038587,1718956775867,-794.1,0.00044109,120]
[330038588,1718956775909,-635.64,0.00044109,120]
[330038589,1718956775944,-772.81,0.00044109,120]
[330038590,1718956775986,-500.0,0.00044109,120]
[330038591,1718956776021,-1348.31,0.00044109,120]
[330038592,1718956776054,-500.0,0.00044109,120]
[330038593,1718956776089,-2781.32,0.00044109,120]
[330038594,1718956776123,-500.0,0.00044109,120]
[330038595,1718956776162,-504.37,0.00044109,120]
[330038596,1718956776197,-8234.15,0.00044109,120]
[330038597,1718956776231,-2391.95,0.00044109,90]
[330038598,1718956776267,-500.0,0.00044109,120]
[330038599,1718956776306,-6937.24,0.00044109,120]
[330038600,1718956776341,-49917.86,0.00044109,120]
[330038601,1718956776377,-17491.67,0.00044109,120]
[330038602,1718956776412,-2777.17,0.00044109,120]
[330038603,1718956776448,-500.0,0.00044109,120]
[330038604,1718956776484,-783.62,0.00044109,120]
[330038605,1718956776519,-500.0,0.00044109,120]
[330038606,1718956776555,-545.86359431,0.00044109,120]
[330038607,1718956776590,-500.0,0.00044109,120]
[330038608,1718956776627,-4818.53,0.00044109,120]
[330038609,1718956776662,-8438.67,0.00044109,120]
[330038610,1718956776697,-43739.07,0.00044109,120]
[330038611,1718956776735,-836.33,0.00044109,120]
[330038612,1718956776773,-500.0,0.00044109,120]
[330038613,1718956776809,-2903.94,0.00044109,120]
[330038614,1718956776845,-1204.23,0.00044109,120]
[330038615,1718956776881,-500.0,0.00044109,120]
[330038616,1718956776920,-2526.12,0.00044109,120]
[330038617,1718956776959,-646.72724646,0.00044109,120]
[330038618,1718956776996,-1622.38,0.00044109,120]
[330038619,1718956777031,-500.0,0.00044109,120]
[330038620,1718956777066,-1431.41,0.00044109,120]
[330038621,1718956777100,-3830.5,0.00044109,120]
[330038622,1718956777134,-1229.3,0.00044109,120]
[330038623,1718956777171,-500.0,0.00044109,120]
[330038624,1718956777205,-2329.91,0.00044109,120]
[330038625,1718956777240,-1196.69,0.00044109,120]
[330038626,1718956777277,-601.28,0.00044109,120]
[330038627,1718956777313,-859.04,0.00044109,120]
[330038628,1718956777351,-1891.84,0.00044109,120]
[330038629,1718956777387,-151.0,0.0004411,120]
[330038630,1718956777436,-500.0,0.00044383,120]
[330038631,1718956777473,-612.03,0.00044383,120]
[330038632,1718956777508,-500.0,0.00044383,120]
[330038633,1718956777545,-500.0,0.00044383,120]
[330038634,1718956777873,-627.34,0.00044383,120]
[330038635,1718956777913,-587.05,0.00044383,120]
[330038636,1718956777950,-500.0,0.00044383,120]
[330038637,1718956777988,-507.84579179,0.00044383,120]
[330038638,1718956778024,-500.0,0.00044383,120]
[330038639,1718956778058,-1146.89,0.00044383,120]
[330038640,1718956778092,-500.0,0.00044383,120]
[330038641,1718956778126,-235.11290859,0.00044383,120]
[330038642,1718956778161,-1059.37,0.00044383,120]
[330038643,1718956778195,-699.11,0.00044383,120]
[330038644,1718956778228,-500.0,0.00044383,120]
[330038645,1718956778264,-811.24,0.00044383,120]
[330038646,1718956778298,-946.4,0.00044383,120]
[330038647,1718956778331,-502.76,0.00044383,120]
[330038648,1718956778363,-554.1,0.00044383,120]
[330038649,1718956778395,-709.95,0.00044383,120]
[330038650,1718956778431,-1217.96,0.00044383,120]
[330038651,1718956778466,-500.0,0.00044383,120]
[330038652,1718956778499,-500.0,0.00044383,120]
[330038653,1718956778536,-500.0,0.00044383,120]
[330038654,1718956778572,-500.0,0.00044383,120]
[330038655,1718956778606,-364.47275861,0.00044383,120]
[330038656,1718956778641,-500.0,0.00044383,120]
[330038657,1718956778681,-619.67,0.00044383,120]
[330038658,1718956778716,-564.1,0.00044383,120]
[330038659,1718956778753,-868.95,0.00044383,120]
[330038660,1718956778788,-500.0,0.00044383,120]
[330038661,1718956778823,-500.0,0.00044383,120]
[330038662,1718956778860,-500.0,0.00044383,120]
[330038663,1718956778903,-683.29,0.00044383,120]
[330038664,1718956778943,-500.0,0.00044383,120]
[330038665,1718956778985,-627.84,0.00044383,120]
[330038666,1718956779023,-500.0,0.00044383,120]
[330038667,1718956779062,-500.0,0.00044383,120]
[330038668,1718956779099,-506.5952966,0.00044383,120]
[330038669,1718956779140,-500.0,0.00044383,120]
[330038670,1718956779179,-511.82,0.00044383,120]
[330038671,1718956779216,-867.89,0.00044383,120]
[330038672,1718956779254,-506.27,0.00044383,120]
[330038673,1718956779291,-306.36292905,0.00044383,120]
[330038674,1718956779330,-500.0,0.00044383,120]
[330038675,1718956779367,-854.92,0.00044383,120]
[330038676,1718956779409,-500.0,0.00044383,120]
[330038677,1718956779453,-500.0,0.00044383,120]
[330038678,1718956779493,-586.31,0.00044383,120]
[330038679,1718956779536,-685.69,0.00044383,120]
[330038680,1718956779575,-500.0,0.00044383,120]
[330038681,1718956779612,-748.3,0.00044383,120]
[330038682,1718956779650,-794.68,0.00044383,120]
[330038683,1718956779687,-500.0,0.00044383,120]
[330038684,1718956779722,-500.0,0.00044383,120]
[330038685,1718956779758,-500.0,0.00044383,120]
[330038686,1718956779796,-532.7,0.00044383,120]
[330038687,1718956779832,-725.95,0.00044383,120]
[330038688,1718956779871,-617.01,0.00044383,120]
[330038689,1718956779914,-500.0,0.00044383,120]
[330038690,1718956779956,-820.21,0.00044383,120]
[330038691,1718956779997,-937.52,0.00044383,120]
[330038692,1718956780035,-719.64,0.00044383,120]
[330038693,1718956780074,-506.86,0.00044383,120]
[330038694,1718956780118,-500.0,0.00044383,120]
[330038695,1718956780176,-839.9,0.00044383,120]
[330038696,1718956780227,-1103.6,0.00044383,120]
[330038697,1718956780266,-500.0,0.00044383,120]
[330038698,1718956780304,-530.78,0.00044383,120]
[330038699,1718956780342,-604.54,0.00044383,120]
[330038700,1718956780382,-697.14,0.00044383,120]
[330038701,1718956780419,-500.0,0.00044383,120]
[330038702,1718956780456,-500.0,0.00044383,120]
[330038703,1718956780493,-500.0,0.00044383,120]
[330038704,1718956780534,-841.77,0.00044383,120]
[330038705,1718956780575,-400.89230665,0.00044383,120]
[330038706,1718956780615,-500.0,0.00044383,120]
[330038707,1718956780655,-520.78,0.00044383,120]
[330038708,1718956780693,-525.07,0.00044383,120]
[330038709,1718956780730,-331.57303728,0.00044383,120]
[330038710,1718956780768,-500.0,0.00044383,120]
[330038711,1718956780803,-500.0,0.00044383,120]
[330038712,1718956780838,-500.0,0.00044383,120]
[330038713,1718956780872,-577.24,0.00044383,120]
[330038714,1718956780911,-500.0,0.00044383,120]
[330038715,1718956780946,-869.8,0.00044383,120]
[330038716,1718956780983,-1432.67,0.00044383,120]
[330038717,1718956781018,-159.48567515,0.00044383,120]
[330038718,1718956781054,-500.0,0.00044383,120]
[330038719,1718956781090,-500.0,0.00044383,120]
[330038720,1718956781126,-473.57131963,0.00044383,120]
[330038721,1718956781162,-853.86,0.00044383,120]
[330038722,1718956781198,-560.61,0.00044383,120]
[330038723,1718956781235,-500.0,0.00044383,120]
[330038724,1718956781269,-820.38,0.00044383,120]
[330038725,1718956781306,-803.6,0.00044383,120]
[330038726,1718956781341,-652.24,0.00044383,120]
[330038727,1718956781375,-561.06,0.00044383,120]
[330038728,1718956781410,-714.43,0.00044383,120]
[330038729,1718956781445,-592.38,0.00044383,120]
[330038730,1718956781479,-500.0,0.00044383,120]
[330038731,1718956781513,-511.62,0.00044383,120]
[330038732,1718956781546,-597.98,0.00044383,120]
[330038733,1718956781580,-977.06,0.00044383,120]
[330038734,1718956781614,-745.53,0.00044383,120]
[330038735,1718956781647,-505.3747841,0.00044383,120]
[330038736,1718956781683,-641.05,0.00044383,120]
[330038737,1718956781717,-525.02,0.00044383,120]
[330038738,1718956781754,-500.0,0.00044383,120]
[330038739,1718956781788,-533.66,0.00044383,120]
[330038740,1718956781822,-1515.35,0.00044383,120]
[330038741,1718956781856,-760.35,0.00044383,120]
[330038742,1718956781895,-614.66,0.00044383,120]
[330038743,1718956781932,-500.0,0.00044383,120]
[330038744,1718956781971,-500.0,0.00044383,120]
[330038745,1718956782006,-500.0,0.00044383,120]
[330038746,1718956782039,-734.54,0.00044383,120]
[330038747,1718956782071,-748.46,0.00044383,120]
[330038748,1718956782105,-500.0,0.00044383,120]
[330038749,1718956782138,-612.85,0.00044383,120]
[330038750,1718956782173,-531.03,0.00044383,120]
[330038751,1718956782208,-500.0,0.00044383,120]
[330038752,1718956782243,-500.0,0.00044383,120]
[330038753,1718956782276,-500.0,0.00044383,120]
[330038754,1718956782310,-500.0,0.00044383,120]
[330038755,1718956782346,-735.27,0.00044383,120]
[330038756,1718956782380,-500.0,0.00044383,120]
[330038757,1718956782414,-500.0,0.00044383,120]
[330038758,1718956782450,-240.69454597,0.00044383,120]
[330038759,1718956782484,-500.0,0.00044383,120]
[330038760,1718956782519,-500.0,0.00044383,120]
[330038761,1718956782554,-500.0,0.00044383,120]
[330038762,1718956782591,-2862.11,0.00044383,120]
[330038763,1718956782623,-182.15069814,0.00044383,120]
[330038764,1718956782663,-500.0,0.00044383,120]
[330038765,1718956782696,-500.0,0.00044383,120]
[330038766,1718956782730,-500.0,0.00044383,120]
[330038767,1718956782763,-500.0,0.00044383,120]
[330038768,1718956782795,-557.27,0.00044383,120]
[330038769,1718956782829,-704.0,0.00044383,120]